Cogmind - Beta 11.2 @@@ ROGUE MODE // 2022.12.26 @ 11:45:04 // Winter2022/Polymind Player: dankcaster889 Result: Destroyed by G-47 Trooper with Particle Gun Performance ------------- Evolutions (0) 0 Regions Visited (2) 400 Robots Destroyed (3) 15 Value Destroyed (49) 49 Prototype IDs (2) 40 Alien Tech Used (0) 0 Bonus (1130) 1130 TOTAL SCORE: 924 Bonus ------- Polymind Skill 1130 Cogmind --------- Core Integrity 0/250 Matter 100/100 Energy 50/50 System Corruption 0% Temperature Cool (11) Movement Flying (40) Location -10/Mines Parts ------- > --- POWER (1) -------- (None) > --- PROPULSION (2) --- Flight Unit > --- UTILITY (0) ------ (None) > --- WEAPON (1) ------- (None) > --- INVENTORY (0) ---- (None) Peak State ------------ > --- POWER ------------ Light Ion Engine > --- PROPULSION ------- Flight Unit Flight Unit > --- UTILITY ---------- (None) > --- WEAPON ----------- Light Assault Rifle > --- INVENTORY -------- (None) [Rating: 4] Favorites ----------- Power Light Ion Engine Engine Light Ion Engine Propulsion Flight Unit Flight Unit Flight Unit Utility None Weapon Light Assault Rifle Ballistic Gun Light Assault Rifle Build | -11 -10 -10 ------- Run | Scr Mat Min Slots Evolved . | . . . Power . | . . . Propulsion . | . . . Utility . | . . . Weapon . | . . . Parts Attached . | . . . Power . | . . . Engine . | . . . Core . | . . . Reactor . | . . . Propulsion . | . . . Treads . | . . . Leg . | . . . Wheel . | . . . Hover . | . . . Flight . | . . . Utility . | . . . Device . | . . . Storage . | . . . Processor . | . . . Hackware . | . . . Protection . | . . . Artifact . | . . . Weapon . | . . . Energy Gun . | . . . Energy Cannon . | . . . Ballistic Gun . | . . . Ballistic Cannon . | . . . Launcher . | . . . Special Weapon . | . . . Impact Weapon . | . . . Slashing Weapon . | . . . Piercing Weapon . | . . . Special Melee Weapon . | . . . Unidentified Prototypes . | . . . Parts Lost 3 | . 1 2 Power 1 | . . 1 Propulsion 1 | . 1 . Utility . | . . . Weapon 1 | . . 1 Highest Loss Streak 2 | . 1 2 To Critical Strikes . | . . . Average Slot Usage (%) 66 | . 65 68 Engine 21 | . 21 21 Flight 23 | . 23 25 Ballistic Gun 21 | . 21 21 Naked Turns 46 | . 46 . Heaviest Build 4 | . 4 4 Greatest Support 8 | 3 8 4 Greatest Overweight (x) . | . . . Average Overweight (x) . | . . . Largest Inventory Capacity . | . . . Average Capacity . | . . . Most Carried . | . . . Average Carried . | . . . Final Capacity . | . . . Final Carried . | . . . Class Distribution -------------------- 88% | Swarmer 11% | Cogmind Dominant Class ---------------- Swarmer | -10/Materials Swarmer | -10/Mines Resources | -11 -10 -10 ----------- Run | Scr Mat Min Matter Collected 61 | . 20 41 Remotely . | . . . Salvage Created 104 | . 104 . Parts 6 | . 6 . Haulers Intercepted . | . . . Recyclers Shooed . | . . . Parts Field Recycled . | . . . Retrieved Matter . | . . . Parts Self-Destructed . | . . . Prevented . | . . . Kills | -11 -10 -10 ------- Run | Scr Mat Min Combat Hostiles Destroyed 2 | . 2 . Guns 2 | . 2 . Classes Destroyed 3 | . 3 . Builder 1 | . 1 . Swarmer 1 | . 1 . Grunt 1 | . 1 . Best Kill Streak 1 | . 1 . Combat Bots Only 1 | . 1 . Max Kills in Single Turn 1 | . 1 . Gunslinging . | . . . Exploded . | . . . Melee . | . . . Uniques/NPCs Destroyed . | . . . Combat | -11 -10 -10 -------- Run | Scr Mat Min Damage Taken 402 | . 341 61 Core 252 | . 212 40 Absorbed by Shields . | . . . Core Remaining (%) 100 | 100 . . Volleys Fired 73 | . 66 7 Largest 1 | . 1 1 Hottest 20 | . 20 20 Shots Fired 73 | . 66 7 Gun 73 | . 66 7 Cannon . | . . . Launcher . | . . . Special . | . . . Kinetic 73 | . 66 7 Thermal . | . . . Explosive . | . . . Electromagnetic . | . . . Robot Hit Streak 6 | . 6 2 Robot Miss Streak 5 | . 4 5 Penetration Max . | . . . Secondary Targets . | . . . Shots Hit Robots 34 | . 30 4 Core Hits 11 | . 10 1 Critical Kills . | . . . Critical Parts Destroyed . | . . . Critical Strikes . | . . . Melee Attacks . | . . . Impact . | . . . Slashing . | . . . Piercing . | . . . Sneak Attacks . | . . . Combat Hostiles . | . . . Follow-up Attacks . | . . . Damage Inflicted 280 | . 248 32 Guns 280 | . 248 32 Cannons . | . . . Explosions . | . . . Melee . | . . . Ramming . | . . . Kinetic 280 | . 248 32 Thermal . | . . . Explosive . | . . . Electromagnetic . | . . . Impact . | . . . Slashing . | . . . Piercing . | . . . Highest Corruption . | . . . Average Corruption . | . . . Corruption Purged . | . . . Corruption Blocked . | . . . Overload Shots . | . . . Overflow Damage . | . . . Projectiles . | . . . Explosions . | . . . Melee . | . . . Knockbacks . | . . . Impact . | . . . Kinetic . | . . . Secondary . | . . . Self-Inflicted Damage . | . . . Shots . | . . . Rammed . | . . . Targets Rammed . | . . . Kicked . | . . . Crushed . | . . . Highest Temperature 154 | . 154 18 Average Temperature 49 | . 53 9 Received Heat Transfer 222 | . 186 36 Siege Activations . | . . . Robots Corrupted . | . . . Combat Hostiles . | . . . Parts Fried . | . . . Impact Corruptions . | . . . Robots Melted . | . . . Combat Hostiles . | . . . Parts Melted . | . . . Heat Transferred . | . . . Parts Sabotaged . | . . . Parts Stolen . | . . . Parts Stripped . | . . . Power Chain Reactions . | . . . Missiles Intercepted . | . . . Alert | -11 -10 -10 ------- Run | Scr Mat Min Peak Influence 140 | . 140 54 Initial 54 | . . 54 Average 71 | . 84 52 Maximum Alert Level . | . . . Low Security (%) 100 | 100 100 100 Level 1 . | . . . Level 2 . | . . . Level 3 . | . . . Level 4 . | . . . Level 5 . | . . . High Security . | . . . Max Security . | . . . Squads Dispatched 1 | . 1 . Investigation . | . . . Extermination . | . . . Reinforcement 1 | . 1 . Assault . | . . . Garrison . | . . . Intercept . | . . . Searches Triggered . | . . . Construction Impeded . | . . . Haulers Reinforced . | . . . Active Scanning Responses . | . . . Cargo Convoy Interrupts . | . . . Stealth | -11 -10 -10 --------- Run | Scr Mat Min Distress Signals 2 | . 2 . Communications Jammed . | . . . Distress Signals . | . . . Times Spotted 15 | . 13 2 Peak Tracking Total 6 | . 6 2 Tactical Retreats 2 | . 2 . Traps | -11 -10 -10 ------- Run | Scr Mat Min Traps Triggered . | . . . Indirectly . | . . . Trap Hack Attempts . | . . . Triggered . | . . . Disarmed . | . . . Reprogrammed . | . . . Reused . | . . . Traps Extracted . | . . . Installed . | . . . Triggered . | . . . Machines | -11 -10 -10 ---------- Run | Scr Mat Min Machines Disabled . | . . . Max in Single Turn . | . . . Machines Sabotaged . | . . . Garrisons Compromised . | . . . Overloaded Fab Kills . | . . . Hacking | -11 -10 -10 --------- Run | Scr Mat Min Machines Accessed 3 | . 3 . Terminals 2 | . 2 . Fabricators . | . . . Repair Stations . | . . . Recycling Units 1 | . 1 . Scanalyzers . | . . . Garrison Access . | . . . Total Hacks 12 | . 12 . Successful 10 | . 10 . Failed 2 | . 2 . Catastrophic . | . . . Database Lockouts . | . . . Manual . | . . . Terminals 5 | . 5 . Fabricators . | . . . Repair Stations . | . . . Recycling Units 7 | . 7 . Scanalyzers . | . . . Garrison Access . | . . . Terminal Hacks 4 | . 4 . Record 1 | . 1 . Prototype ID Bank 1 | . 1 . Emergency Access Points 1 | . 1 . Hauler Manifests 1 | . 1 . Fabricator Hacks . | . . . Repair Station Hacks . | . . . Recycling Unit Hacks 6 | . 6 . Retrieve Matter 6 | . 6 . Scanalyzer . | . . . Garrison Access Hacks . | . . . Unauthorized Hacks . | . . . Terminals . | . . . Fabricators . | . . . Repair Stations . | . . . Recycling Units . | . . . Scanalyzers . | . . . Garrison Access . | . . . Data Cores Recovered . | . . . Used . | . . . Hacking Detections 2 | . 2 . Full Trace Events 1 | . 1 . Feedback Events . | . . . Feedback Blocked . | . . . Robot Schematics Acquired . | . . . Robots Built . | . . . Authchips . | . . . Time . | . . . Total Robot Build Rating . | . . . Part Schematics Acquired . | . . . Parts Built . | . . . Authchips . | . . . Time . | . . . Total Part Build Rating . | . . . Parts Repaired . | . . . Time . | . . . Parts Recycled . | . . . Recycled Matter . | . . . Retrieved Matter . | . . . Retrieved Components . | . . . Parts Scanalyzed . | . . . Part Schematics Acquired . | . . . Parts Damaged . | . . . Bothacking | -11 -10 -10 ------------ Run | Scr Mat Min Used RIF Installer . | . . . Robots Hacked 1 | . 1 . Non-combat . | . . . Combat 1 | . 1 . Robot Hacks Applied 1 | . 1 . find_shortcuts 1 | . 1 . Relay Couplers Released . | . . . Fabnet Peak Effective % . | . . . Robots Rewired . | . . . Allies Hacked . | . . . Hacks Repelled . | . . . Allies | -11 -10 -10 -------- Run | Scr Mat Min Total Allies . | . . . Largest Group . | . . . Highest-Rated Group . | . . . Highest-Rated Ally . | . . . Total Orders . | . . . Ally Attacks . | . . . Total Damage . | . . . Kills . | . . . Allies Corrupted . | . . . Allies Melted . | . . . Intel | -11 -10 -10 ------- Run | Scr Mat Min Robot Analysis Total 1 | . 1 . Derelict Logs Recovered 1 | . . 1 Drone Launches . | . . . Drone Recoveries . | . . . Exploration | -11 -10 -10 ------------- Run | Scr Mat Min Turns Passed 409 | 11 254 144 Spaces Moved 667 | 23 316 328 Core 113 | 23 90 . Treads . | . . . Legs . | . . . Wheels . | . . . Hover . | . . . Flight 554 | . 226 328 Fastest Speed 37 | 50 37 40 Average Speed 41 | 50 42 40 Slowest Speed 50 | 50 50 40 Overloaded Moves . | . . . Propulsion Burnouts . | . . . Robots Hopped 10 | . 1 9 Cave-ins Triggered . | . . . Exploration Rate (%) 36 | 3 34 71 Regions Visited 2 Branch Regions 1 Pre-discovered Areas . | . . . Known Exits Taken . | . . . Unknown Exits Taken 2 | 1 1 . Scrap Searched 1 | . . 1 Spaces Dug . | . . . Terrain Destroyed . | . . . Melee . | . . . Projectile . | . . . AOE . | . . . Terrain Rammed . | . . . Walls Destroyed . | . . . Machines Disabled . | . . . Actions | -11 -10 -10 --------- Run | Scr Mat Min Total 728 | 22 380 326 Wait . | . . . Move 647 | 22 313 312 Hop 8 | . 1 7 Pick Up . | . . . Fast Attach . | . . . Attach . | . . . Detach . | . . . Swap . | . . . Drop . | . . . Fire 73 | . 66 7 Melee . | . . . Ram . | . . . Kick . | . . . Crush . | . . . Escape Stasis . | . . . Rewire . | . . . Trap . | . . . Miscellaneous . | . . . Route ------- -11/Scrapyard -10/Materials -10/Mines History --------- Turn | Location | Event 5 | -11/Scrapyard | Discovered new exit (range 13) 12 | -11/Scrapyard | Entered Materials 160 | -10/Materials | Core integrity fell below 50% 190 | -10/Materials | Core integrity fell below 20% 263 | -10/Materials | Discovered new exit (range 7) 266 | -10/Materials | Entered Mines 284 | -10/Mines | Met a Derelict bent on vengeance 316 | -10/Mines | Learned Materials stockpile data 410 | -10/Mines | Destroyed by G-47 Trooper with Particle Gun Last Messages --------------- 00219_ ALERT: Hostiles spotted, dispatching reinforcements to Terminal M001. 00219_ O-16 Technician locks terminal. 00256_ Terminal unresponsive. 00263_ EXIT=FOUND LOCATION=UNKNOWN GOAL=ESCAPE 00274_ K-01 Serf collects debris. 00294_ Searching scrap... 00294_ Found Lgt. Cannon. 00294_ Found Tractor Beam. 00294_ Found 17 Matter. 00295_ Acquired 17 matter. 00316_ Acquired derelict log, extracted data. Data stored: Materials stockpile data. 00337_ K-01 Serf collects debris. 00369_ Extracted 24 matter. 00395_ K-01 Serf collects debris. 00395_ Lgt. Ion Engine destroyed. 00399_ Lgt. Assault Rifle destroyed. 00399_ K-01 Serf collects debris. Map ----- +----------------------------------------------------+ | ???????# #???????????????????? | | ???????# ##### #### #???????????????????? | | ???????##########?### #### #???????????????????? | | ??????????????????# ## #???????????????????? | | ????????####??????# #### #######?????????????? | | ???????## ##?????# #??# ##????????????? | | ??###### ##????# #??## #????????????? | | ?## #????# #???## #?????? ????? | | ## """ #????# #????## ## #???? ?????? | | # """ ###### ####??## ##??#?? ???????? | | """ #???## #???## ?? #????? | | #### #????# #?? #?????? | | #### ##??# ##????# ## #??????? | | ???## ## ##???# ##?????# #??????? | | ????########????## ##??????# ## #???????? | | ?????????????????####????#### ### ## ??? | | ?????????????????????????# ??? | | ?????????????????????????# g #??? | | ?????????????????????????# g##### ######?????? | | ?????????????????????????# #????? #??????????? | | ?????????????????????????# #?????? #?????????? | | ?????????????????????????# #??????? #????????? | | ??????????????????????#### ##??????? #????????? | | ?????????????????????## #?????????????????? | | ????????????????????## #?????????????????? | | ????????????????????# s ##?????????????????? | | ????????????????????# ##??????????????????? | | ????????????????????## ##???????????????????? | | ???????????????? #???## ##????????????????????? | | ???????????? ????# #??????????????????????? | | ??####### ?? ???????????????????????? | | ??# ? ???????????????????????? | | ??# ##????????????????????????? | | ??# #### #?????????#????????????????? | | ??# #????? ### #?????????# ???????????????? | | ??# #????????? ??????#### ????????????????? | | ### ##???????? #??????# ????????????????? | | ##????#?? #?????? #????????????????? | | #??? #?# ??????? ##???????????????? | | ### #?# ????????? ##??????????????? | | ### ????????? #??????????????? | | # ## ?????????? #??????????????? | | ## ####### #??????????# #???????????????? | | ## ###??# #?????????## #???????????????? | | # ##?# #????????## ##??????????????? | | ### ########## #??????????????? | | #??????????????? | | ## ##### #??????????????? | | ## ###### #???# #??????????????? | | ######??? #??## #??????????????? | +----------------------------------------------------+ Best States ------------- Heat Dissipation 25 Energy Generation 15 Energy Capacity 100 Matter Stores 100 Matter Capacity 100 Sight Range 16 Terrain Scan Density 10 Evasion (%) 62 Item Schematics ----------------- None Robot Schematics ------------------ None Fabricated ------------ Nothing Alien Tech Used ----------------- None Achievements -------------- None Challenges ------------ None Polymind | -11 -10 -10 ---------- Run | Scr Mat Min Robots Controlled 1 | . 1 . Combat Hostiles 1 | . 1 . Allies . | . . . Classes Controlled 1 | . 1 . Average Host Suspicion 87 | . 100 69 Unsuspicious Activity . | . . . Returns to Shadow . | . . . Fuzzy Dispatches . | . . . Protomatter Created 21 | . . 21 Used 6 | . 6 . Decayed . | . . . Highest Spend 6 | . 6 . Top 5 Hosts by Kills: S-10 Pest (-10/Materials: 2) Game ------ Seed BurstHardcellNeutralizer Manual? 0 Play Time 00:07:01 Cumulative 2.8 hours Start 2022.12.26 @ 11:39:29 End 2022.12.26 @ 11:45:04 Sessions 1 Manual Loads 0 Difficulty Rogue Special Mode Winter2022/Polymind Game No. 17 Rogue 17 Adventurer 0 Explorer 0 Win Type - Total 0 Types 0/0/0/0/0/0/0/0/0 Lore% 3 Gallery% 8 Achievement% 10 Wizard Run 0 Options --------- ASCII 0 Keyboard 0 Movement Arrows Keybinds 0 Fullscreen 1 Font 12/Terminus Map View 83x54 Tactical HUD 1 Map Filters NONE Filters NONE Steam 1 RUN: 4e1a376f-951c-4e9c-a5db-da0be011b964